bitfinex-derivatives/quotes_SOLF0:USTF0_20250516
["timestamp","ask_amount","ask_price","bid_price","bid_amount"]
[1747422758547,118.44,170.62,170.61,5.8589]
[1747422758848,59.22,170.65,170.64,5.8579]
[1747422759236,118.44,170.65,170.64,5.8579]
[1747422760048,118.44,170.65,170.61,5.09783499]
[1747422760241,118.44,170.65,170.64,5.09783499]
[1747422760448,129.21984504,170.65,170.58,7.28924544]
[1747422760747,5.8585,170.63,170.58,7.28924544]
[1747422762053,129.21984504,170.65,170.58,7.28924544]
[1747422762255,118.44,170.65,170.58,7.28924544]
[1747422762453,118.44,170.65,170.63,5.8579]
[1747422763255,124.2976,170.65,170.63,5.8579]
[1747422764556,124.2976,170.65,170.62,5.8584]
[1747422764759,118.44,170.65,170.58,7.28924544]
[1747422765058,118.44,170.65,170.63,5.8581]
[1747422765365,124.2976,170.65,170.63,5.8581]
[1747422765659,118.44,170.65,170.58,7.28924544]
[1747422766260,59.2,170.64,170.63,5.8581]
[1747422767966,59.2,170.64,170.58,7.28924544]
[1747422768561,65.0581,170.64,170.62,5.8586]
[1747422768763,65.0581,170.64,170.58,7.28924544]
[1747422768956,59.2,170.64,170.58,7.28924544]
[1747422769859,65.058,170.64,170.58,7.28924544]
[1747422770358,59.2,170.64,170.63,5.8583]
[1747422771159,59.2,170.64,170.57,7.28924544]
[1747422771354,10.77984504,170.61,170.57,7.28924544]
[1747422771555,5.86,170.58,170.57,7.28924544]
[1747422772061,10.77984504,170.58,170.55,10.93386816]
[1747422772362,5.8607,170.56,170.55,10.93386816]
[1747422772657,124.2407,170.56,170.55,10.93386816]
[1747422772963,118.38,170.56,170.51,14.57849088]
[1747422773163,10.77984504,170.55,170.51,14.57849088]
[1747422774264,10.77984504,170.55,170.45,84.81853669]
[1747422774467,16.70884504,170.55,170.45,84.81853669]
[1747422774767,5.8631,170.49,170.46,5.864]
[1747422774966,59.2,170.48,170.45,84.81853669]
[1747422775263,59.2,170.48,170.46,5.8641]
[1747422775760,59.2,170.48,170.42,5.9388]
[1747422775966,59.2,170.48,170.43,4.89527971]
[1747422776362,59.2,170.48,170.47,5.8638]
[1747422777559,59.2,170.5,170.49,5.8631]
[1747422777866,118.4,170.5,170.49,5.8631]
[1747422779661,10.77984504,170.56,170.45,59.2]
[1747422779868,118.4,170.55,170.45,59.2]
[1747422780970,118.4,170.55,170.46,4.88634324]
[1747422781369,10.77984504,170.53,170.46,4.88634324]
[1747422781669,16.64164504,170.53,170.49,5.8628]
[1747422781862,10.77984504,170.53,170.46,4.88634324]
[1747422782868,5.8631,170.49,170.46,10.75044324]
[1747422783079,59.2,170.48,170.47,4.88634324]
[1747422783573,65.0634,170.48,170.47,4.88634324]
[1747422784372,5.8639,170.47,170.44,10.75104324]
[1747422784778,59.2,170.48,170.44,4.88634324]
[1747422786972,59.2,170.48,170.4,4.88634324]
[1747422787373,10.77984504,170.47,170.4,4.88634324]
[1747422787575,10.77984504,170.44,170.4,4.88634324]
[1747422787775,118.44,170.43,170.4,4.88634324]
[1747422787974,5.8658,170.41,170.4,4.88634324]
[1747422788278,118.44,170.43,170.37,5.45685858]
[1747422788575,5.8666,170.39,170.37,5.45685858]
[1747422788773,65.0866,170.39,170.37,5.45685858]
[1747422789074,59.22,170.39,170.37,11.32395858]
[1747422789576,59.22,170.39,170.37,5.45685858]
[1747422789877,124.3267,170.39,170.37,5.45685858]
[1747422790178,118.46,170.39,170.37,5.45685858]
[1747422790370,118.46,170.39,170.34,4.87151664]
[1747422791677,118.46,170.39,170.33,3.9069]
[1747422791877,5.8672,170.37,170.34,5.8681]
[1747422792174,118.46,170.39,170.32,4.87151664]
[1747422792573,118.46,170.39,170.34,5.8679]
[1747422792777,10.77984504,170.38,170.32,4.87151664]
[1747422792976,10.77984504,170.35,170.32,4.87151664]
[1747422793181,118.46,170.34,170.32,4.87151664]
[1747422793373,5.8686,170.33,170.32,4.87151664]
[1747422794481,118.46,170.34,170.25,4.85911393]
[1747422794979,5.8689,170.33,170.25,4.85911393]
[1747422795580,118.46,170.34,170.24,1.9505]
[1747422795781,118.5,170.33,170.24,1.9505]
[1747422796080,118.5,170.33,170.32,5.8688]
[1747422801882,59.26,170.39,170.38,5.8669]
[1747422810394,59.26,170.39,170.31,1.9376]
[1747422810589,59.26,170.39,170.3,1.8908]
[1747422810781,5.8674,170.37,170.3,1.8908]
[1747422810986,59.24,170.36,170.33,5.8684]
[1747422811194,59.24,170.35,170.33,5.8684]
[1747422811595,59.24,170.35,170.31,5.8691]
[1747422812094,5.8685,170.34,170.31,5.8691]
[1747422812398,59.24,170.35,170.3,5.8695]
[1747422812587,5.8686,170.33,170.3,5.8695]
[1747422813098,5.8693,170.31,170.29,5.8698]
[1747422813293,59.24,170.31,170.26,7.42555858]
[1747422813499,59.24,170.31,170.26,5.45685858]
[1747422813997,59.24,170.31,170.27,5.8704]
[1747422813998,5.8697,170.3,170.27,5.8704]
[1747422815296,65.1093,170.31,170.28,5.8703]
[1747422816100,59.24,170.31,170.22,1.9848]
[1747422816300,59.24,170.31,170.23,11.7441]
[1747422816501,11.7312,170.42,170.23,11.7441]
[1747422816502,10.77984504,170.36,170.23,59.24]
[1747422816693,118.5,170.35,170.23,59.24]
[1747422816889,118.5,170.35,170.24,11.7433]
[1747422817088,118.5,170.35,170.25,59.26]
[1747422817500,118.5,170.35,170.25,70.03984504]
[1747422817998,118.5,170.35,170.26,4.83470454]
[1747422818202,118.5,170.35,170.34,5.8682]
[1747422819103,566.38,170.38,170.37,5.8672]
[1747422819300,625.62,170.38,170.37,5.8672]
[1747422825106,59.26,170.42,170.33,59.26]
[1747422825307,118.5,170.42,170.34,3.9611]
[1747422825693,59.26,170.42,170.34,3.9611]
[1747422825899,59.24,170.41,170.34,3.9611]
[1747422826305,59.24,170.41,170.35,4.85161729]
[1747422827009,59.24,170.41,170.4,5.8662]
[1747422827208,59.26,170.42,170.4,5.8662]
[1747422827397,59.24,170.41,170.4,5.8662]
[1747422827909,59.26,170.42,170.41,5.8658]
[1747422829008,118.5,170.42,170.41,5.8658]
[1747422829410,118.5,170.42,170.34,9.41795858]
[1747422830711,118.5,170.42,170.38,5.8666]
[1747422830712,124.3657,170.42,170.38,5.8666]
[1747422830903,118.5,170.42,170.38,5.8666]
[1747422831507,124.3656,170.42,170.38,5.8666]
[1747422831709,118.5,170.42,170.38,5.8666]
[1747422832009,118.5,170.42,170.34,9.41795858]
[1747422832713,5.866,170.41,170.38,5.8666]
[1747422833514,118.5,170.42,170.34,3.9611]
[1747422833812,59.26,170.42,170.34,3.9611]
[1747422834012,59.26,170.42,170.35,4.86889893]
[1747422834215,59.26,170.42,170.41,5.8658]
[1747422834513,59.22,170.45,170.36,61.1745]
[1747422835213,59.22,170.45,170.37,10.32575751]
[1747422835406,59.22,170.45,170.43,5.8649]
[1747422835613,59.22,170.45,170.37,10.32575751]
[1747422836304,59.22,170.45,170.38,4.86889893]
[1747422837110,59.22,170.45,170.43,5.8649]
[1747422837411,59.22,170.45,170.39,4.86889893]
[1747422838409,59.22,170.45,170.43,5.8649]
[1747422838610,59.22,170.45,170.4,4.86889893]
[1747422838811,10.77984504,170.49,170.4,4.86889893]
[1747422838812,59.2,170.49,170.4,4.86889893]
[1747422839007,59.2,170.48,170.47,5.8634]
[1747422840221,59.2,170.48,170.46,5.864]
[1747422840519,59.2,170.48,170.41,3.8626]
[1747422841019,59.2,170.48,170.43,5.8651]
[1747422841216,59.2,170.48,170.44,4.86470884]
[1747422841617,5.8641,170.46,170.44,4.86470884]
[1747422842219,5.8644,170.45,170.44,4.86470884]
[1747422843115,5.865,170.44,170.36,66.61135858]
[1747422843312,59.2,170.48,170.36,66.61135858]
[1747422843720,5.8648,170.44,170.42,5.8654]
[1747422844314,5.8646,170.45,170.36,66.61135858]
[1747422844920,5.8646,170.45,170.42,5.8653]
[1747422845420,5.8648,170.44,170.41,5.8657]
[1747422845917,59.2,170.48,170.36,66.61135858]
[1747422846115,5.8646,170.45,170.42,5.8655]
[1747422847117,59.2,170.48,170.41,5.8658]
[1747422847322,59.2,170.48,170.36,66.61135858]
[1747422847622,59.2,170.48,170.37,4.86663116]
[1747422847923,5.865,170.44,170.41,5.8656]
[1747422848118,124.245,170.44,170.41,5.8656]
[1747422849024,5.8652,170.43,170.41,5.8656]
[1747422849424,124.2449,170.44,170.42,5.8655]
[1747422849724,124.2449,170.44,170.36,61.1545]
[1747422850317,5.8653,170.43,170.4,5.8658]
[1747422850516,118.38,170.44,170.36,1.9545]
[1747422850727,10.77984504,170.43,170.35,5.45685858]
[1747422850930,10.77984504,170.4,170.35,5.45685858]
[1747422851129,118.38,170.39,170.35,5.45685858]
[1747422851332,5.8669,170.38,170.35,11.32465858]
[1747422851836,5.8669,170.38,170.35,5.8678]
[1747422853130,5.8672,170.37,170.34,5.8681]
[1747422853335,118.38,170.39,170.31,5.45685858]
[1747422853932,5.8681,170.35,170.32,5.8688]
[1747422854134,59.2,170.35,170.31,5.45685858]
[1747422854531,59.2,170.35,170.33,5.8684]
[1747422854731,59.2,170.35,170.29,3.8315]
[1747422854927,65.0679,170.35,170.32,5.8687]
[1747422855132,59.2,170.35,170.29,3.8315]
[1747422855540,59.2,170.35,170.33,5.8684]
[1747422855741,59.2,170.35,170.3,4.8677037]
[1747422856038,5.8693,170.31,170.3,4.8677037]
[1747422856236,124.2893,170.31,170.3,4.8677037]
[1747422856738,5.8697,170.3,170.26,5.871]
[1747422857336,124.2895,170.31,170.23,5.45685858]
[1747422857637,118.42,170.31,170.23,5.45685858]
[1747422857827,118.42,170.31,170.24,4.86184348]
[1747422858034,5.8697,170.3,170.27,5.8706]
[1747422858240,118.42,170.31,170.27,5.8706]
[1747422858836,118.42,170.31,170.24,4.86184348]
[1747422859435,118.42,170.31,170.29,5.8697]
[1747422860040,118.42,170.31,170.3,5.8696]
[1747422863741,118.42,170.31,170.29,5.8699]
[1747422864346,118.42,170.31,170.3,5.8696]
[1747422871949,118.42,170.31,170.29,5.8698]
[1747422872146,118.42,170.31,170.23,5.45685858]
[1747422872949,118.42,170.31,170.24,4.85467278]
[1747422873548,118.42,170.31,170.3,5.8696]
[1747422873751,129.19984504,170.31,170.24,4.85467278]
[1747422874149,5.8698,170.3,170.26,5.8707]
[1747422874545,5.8698,170.3,170.22,7.37775858]
[1747422874956,118.42,170.31,170.22,7.37775858]
[1747422875151,10.77984504,170.33,170.22,7.37775858]
[1747422875347,118.54,170.32,170.3,5.8694]
[1747422875547,118.56,170.32,170.3,5.8694]
[1747422876352,118.56,170.32,170.28,5.87]
[1747422876543,118.56,170.32,170.23,4.85236807]
[1747422877351,118.56,170.32,170.3,5.8694]
[1747422878154,118.56,170.32,170.31,5.8693]
[1747422878344,59.2,170.32,170.31,5.8693]
[1747422878549,118.5,170.35,170.26,59.3]
[1747422878750,118.5,170.35,170.26,61.2529]
[1747422879350,118.5,170.35,170.33,5.8682]
[1747422879752,118.5,170.35,170.27,4.85236807]
[1747422880560,118.5,170.35,170.28,4.85236807]
[1747422881360,59.24,170.34,170.28,4.85236807]
[1747422881958,59.24,170.34,170.33,5.8683]
[1747422882756,59.2,170.35,170.28,4.85236807]
[1747422882960,59.2,170.35,170.34,5.8682]
[1747422883161,118.42,170.35,170.34,5.8682]
[1747422888363,59.2,170.35,170.34,5.8682]
[1747422890763,59.22,170.37,170.36,5.8675]
[1747422897872,59.2,170.38,170.37,5.8672]
[1747422898069,59.2,170.39,170.31,5.45685858]
[1747422898262,59.2,170.39,170.32,7.33715858]
[1747422899563,118.4,170.4,170.39,5.8665]
[1747422899767,59.2,170.4,170.39,5.8665]
[1747422900071,59.2,170.42,170.41,5.8658]
[1747422900259,10.77984504,170.47,170.33,118.4]
[1747422900464,118.4,170.46,170.34,2.0201]
[1747422900665,118.4,170.46,170.43,5.8649]
[1747422900865,5.8647,170.45,170.35,11.7358]
[1747422901068,59.2,170.45,170.35,11.7358]
[1747422901266,59.2,170.45,170.41,5.8656]
[1747422901663,10.77984504,170.44,170.34,2.0201]
[1747422902874,5.8665,170.4,170.36,5.8674]
[1747422903061,124.2465,170.4,170.36,5.8674]
[1747422903474,5.8667,170.39,170.36,5.8674]
[1747422904068,124.2463,170.4,170.36,5.8674]
[1747422904370,124.2463,170.4,170.37,5.8671]
[1747422905073,5.8666,170.39,170.36,5.8674]
[1747422905270,118.38,170.4,170.35,4.87303344]
[1747422905771,5.8673,170.37,170.35,4.87303344]
[1747422906863,65.0675,170.36,170.35,4.87303344]
[1747422907068,124.2475,170.36,170.35,4.87303344]
[1747422907266,118.38,170.36,170.27,3.8568]
[1747422908576,124.2476,170.36,170.32,5.8686]
[1747422908972,118.38,170.36,170.32,5.8686]
[1747422909274,118.38,170.36,170.27,3.8568]
[1747422909679,118.38,170.36,170.29,5.8699]
[1747422909977,118.38,170.36,170.27,3.8568]
[1747422910880,5.8682,170.35,170.31,5.8691]
[1747422911176,118.38,170.36,170.27,3.8568]
[1747422911379,5.8684,170.34,170.27,3.8568]
[1747422911574,118.38,170.36,170.27,3.8568]
[1747422912076,118.38,170.36,170.28,5.47041524]
[1747422912272,59.18,170.36,170.28,64.65041524]
[1747422912472,59.18,170.36,170.34,5.868]
[1747422913582,10.94519166,170.47,170.31,10.77984504]
[1747422913882,118.56,170.46,170.34,10.77984504]
[1747422914184,118.56,170.46,170.35,1.8991]
[1747422914790,10.77984504,170.42,170.29,1.9562]
[1747422914991,10.77984504,170.39,170.29,1.9562]
[1747422915192,59.2,170.38,170.29,1.9562]
[1747422915389,59.2,170.38,170.3,59.4]
[1747422915593,59.4,170.39,170.38,5.8669]
[1747422915993,59.2,170.41,170.31,59.2]
[1747422916490,59.2,170.41,170.32,10.77984504]
[1747422916699,59.42,170.42,170.32,10.77984504]
[1747422917298,59.42,170.42,170.41,5.8658]
[1747422918002,59.42,170.42,170.35,61.2032]
[1747422918699,59.42,170.42,170.4,5.8661]
[1747422919994,59.42,170.42,170.39,5.8664]
[1747422920192,59.42,170.42,170.35,2.0232]
[1747422920393,10.77984504,170.38,170.24,11.743]
[1747422920597,5.8684,170.34,170.24,15.6649]
[1747422920793,59.56,170.33,170.3,5.8696]
[1747422920994,59.56,170.33,170.24,3.9219]
[1747422921501,59.56,170.33,170.3,5.8696]
[1747422922299,65.4287,170.33,170.29,5.8698]
[1747422922695,65.4287,170.33,170.24,3.9219]
[1747422922902,59.56,170.33,170.3,5.8694]
[1747422923202,59.56,170.33,170.24,3.9219]
[1747422923402,59.56,170.33,170.24,14.70174504]
[1747422923602,59.56,170.33,170.32,5.8689]
[1747422924007,59.42,170.34,170.27,119.0]
[1747422924207,59.56,170.36,170.27,129.77984504]
[1747422924704,59.56,170.36,170.35,5.8679]
[1747422924904,59.56,170.36,170.27,129.77984504]
[1747422925205,59.56,170.36,170.33,5.8684]
[1747422925403,59.56,170.36,170.27,129.77984504]
[1747422925600,59.56,170.36,170.27,119.0]
[1747422925800,59.56,170.36,170.22,1.8803]
[1747422925996,59.56,170.36,170.21,1.8661]
[1747422925997,10.77984504,170.35,170.21,1.8661]
[1747422926311,59.44,170.34,170.27,5.8704]
[1747422926498,59.44,170.34,170.21,1.8661]
[1747422926807,59.44,170.34,170.21,12.64594504]
[1747422927307,5.8688,170.33,170.29,5.8698]
[1747422927606,59.6,170.32,170.29,5.8698]
[1747422927808,59.6,170.32,170.28,5.8702]
[1747422928003,59.6,170.32,170.24,59.44]
[1747422928509,5.8698,170.3,170.26,5.8708]
[1747422928811,59.6,170.32,170.24,59.44]
[1747422929200,59.6,170.32,170.21,12.64594504]
[1747422929201,59.6,170.32,170.21,61.3061]
[1747422929403,59.6,170.32,170.21,1.8661]
[1747422929801,5.8702,170.29,170.25,5.8711]
[1747422930003,65.3102,170.29,170.25,5.8711]
[1747422930202,59.44,170.29,170.25,5.8711]
[1747422930908,65.3101,170.29,170.25,5.8711]
[1747422931309,65.3101,170.29,170.26,5.871]
[1747422932209,59.44,170.29,170.21,1.8661]
[1747422932509,59.62,170.28,170.21,1.8661]
[1747422932905,59.62,170.28,170.17,59.46]
[1747422933104,59.62,170.28,170.17,61.351]
[1747422933621,59.62,170.28,170.18,10.77984504]
[1747422934112,59.62,170.28,170.26,5.8708]
[1747422934315,59.62,170.28,170.21,119.18]
[1747422934507,59.62,170.28,170.27,5.8706]
[1747422935315,59.62,170.28,170.26,5.8709]
[1747422935509,59.62,170.28,170.17,1.891]
[1747422935699,70.39984504,170.28,170.17,1.891]
[1747422935906,1.8625,170.27,170.17,1.891]
[1747422936712,5.8715,170.25,170.2,5.8731]
[1747422936907,119.2,170.24,170.17,1.891]
[1747422937107,1.8625,170.27,170.17,1.891]
[1747422937309,119.18,170.27,170.17,1.891]
[1747422937518,59.46,170.27,170.18,59.74]
[1747422937716,59.74,170.28,170.23,5.46275544]
[1747422938415,59.74,170.28,170.24,2.06433299]
[1747422938611,59.46,170.3,170.25,2.06433299]
[1747422938818,59.46,170.3,170.26,2.06433299]
[1747422939116,59.46,170.3,170.29,5.87]
[1747422939320,59.46,170.3,170.24,6.67239219]
[1747422939618,59.46,170.3,170.26,5.8708]
[1747422939809,59.46,170.3,170.24,4.83269219]
[1747422940110,59.46,170.3,170.25,2.06459486]
[1747422940314,61.3417,170.3,170.24,4.83269219]
[1747422940513,5.8709,170.27,170.24,4.83269219]
[1747422940705,119.36,170.26,170.24,4.83269219]
[1747422941315,119.36,170.26,170.24,10.70429219]
[1747422942112,119.36,170.26,170.24,5.8716]
[1747422942320,119.36,170.26,170.21,5.46275544]
[1747422942513,119.36,170.26,170.22,2.06485136]
[1747422942711,119.36,170.26,170.21,5.46275544]
[1747422942910,5.8714,170.25,170.22,2.06501557]
[1747422943111,5.8714,170.25,170.21,11.33515544]
[1747422943315,5.8714,170.25,170.22,2.06501586]
[1747422943514,5.8714,170.25,170.21,5.46275544]
[1747422943718,5.8714,170.25,170.22,2.06447592]
[1747422943921,5.8714,170.25,170.21,5.46275544]
[1747422944215,5.8714,170.25,170.22,7.93676517]
[1747422944407,119.36,170.26,170.21,5.46275544]
[1747422944408,5.8719,170.24,170.21,5.46275544]
[1747422944610,119.36,170.26,170.22,2.06423145]
[1747422944810,119.36,170.26,170.21,5.46275544]
[1747422945011,5.8719,170.24,170.22,2.06425035]
[1747422945309,119.36,170.26,170.21,5.46275544]
[1747422945920,5.8722,170.23,170.21,5.46275544]
[1747422948527,5.8718,170.24,170.21,11.33535544]
[1747422948713,119.36,170.26,170.22,2.06393724]
[1747422948914,119.36,170.26,170.21,5.46275544]
[1747422949418,5.8723,170.23,170.21,5.46275544]
[1747422949623,119.36,170.26,170.22,2.06360207]
[1747422949810,119.36,170.26,170.21,5.46275544]
[1747422950017,59.74,170.28,170.22,2.06336622]
[1747422950322,59.74,170.28,170.21,5.46275544]
[1747422950323,59.48,170.29,170.23,2.06336622]
[1747422950624,119.22,170.29,170.26,5.8708]
[1747422950822,59.48,170.29,170.26,5.8708]
[1747422951120,59.72,170.28,170.26,5.8708]
[1747422951318,59.7,170.28,170.21,16.24260048]
[1747422951521,59.48,170.29,170.22,2.06276269]
[1747422951718,59.48,170.29,170.23,2.06276269]
[1747422951920,59.48,170.29,170.24,2.06276269]
[1747422952120,59.48,170.29,170.25,2.06276269]
[1747422952322,59.48,170.29,170.26,2.06276269]
[1747422952517,59.48,170.29,170.27,5.8704]
[1747422953629,59.48,170.29,170.26,4.81750456]
[1747422954124,65.3502,170.29,170.26,4.81750456]
[1747422954629,59.48,170.29,170.26,4.81750456]
[1747422954821,59.48,170.29,170.21,16.24260048]
[1747422955025,59.48,170.29,170.22,2.06272624]
[1747422955223,59.48,170.29,170.27,5.8703]
[1747422955522,59.48,170.29,170.21,16.24260048]
[1747422955724,59.48,170.29,170.22,2.06343014]
[1747422955928,65.3502,170.29,170.25,5.8711]
[1747422956119,65.3502,170.29,170.26,2.06343014]
[1747422956424,65.3502,170.29,170.25,5.8711]
[1747422956626,65.3502,170.29,170.26,2.06396886]
[1747422956823,59.48,170.29,170.23,4.8201318]
[1747422957025,59.48,170.29,170.24,2.06397431]
[1747422957228,5.8712,170.26,170.23,10.6921318]
[1747422957427,65.5112,170.26,170.23,4.8201318]
[1747422957725,59.64,170.26,170.23,4.8201318]
[1747422957923,5.8714,170.25,170.22,5.8722]
[1747422958118,59.64,170.26,170.2,7.28367393]
[1747422958319,59.64,170.26,170.21,2.06495992]
[1747422958629,59.64,170.26,170.25,5.8713]
[1747422958928,119.1,170.29,170.25,2.06495992]
[1747422959131,119.1,170.29,170.26,5.8708]
[1747422959425,119.1,170.29,170.2,7.28367393]
[1747422959620,119.1,170.29,170.21,2.06449499]
[1747422959826,5.8712,170.26,170.23,5.8717]
[1747422960021,119.1,170.29,170.2,7.28367393]
[1747422960222,119.1,170.29,170.21,2.06564255]
[1747422960427,5.8719,170.24,170.22,2.06564255]
[1747422960729,59.68,170.23,170.21,5.8726]
[1747422961122,59.68,170.23,170.22,5.8724]
[1747422961427,59.68,170.23,170.2,7.28367393]
[1747422961815,59.68,170.23,170.21,2.06655669]
[1747422962022,59.68,170.23,170.2,13.15657393]
[1747422962326,5.8724,170.22,170.21,2.06784234]
[1747422962527,59.68,170.23,170.2,7.28367393]
[1747422963020,5.8727,170.21,170.2,7.28367393]
[1747422963220,59.68,170.23,170.2,9.35316191]
[1747422963420,59.68,170.23,170.2,7.28367393]
[1747422964627,59.68,170.23,170.2,5.8729]
[1747422965128,10.77984504,170.31,170.24,5.8715]
[1747422965318,119.36,170.27,170.24,5.8715]
[1747422965926,125.2308,170.27,170.25,5.8713]
[1747422966833,5.8711,170.26,170.24,5.8716]
[1747422967034,119.36,170.27,170.17,59.72]
[1747422967228,119.36,170.27,170.18,2.07114001]
[1747422967429,119.36,170.27,170.19,2.07114001]
[1747422967633,125.2308,170.27,170.2,2.07138691]
[1747422967830,119.36,170.27,170.21,2.07138691]
[1747422968035,119.36,170.27,170.22,2.07138691]
[1747422968228,59.58,170.26,170.23,2.07138691]
[1747422968430,59.72,170.27,170.24,2.07138691]
[1747422968630,59.6,170.28,170.25,2.07138691]
[1747422968928,59.6,170.28,170.26,2.07138691]
[1747422969129,59.6,170.28,170.27,2.07138691]
[1747422969534,59.6,170.28,170.19,3.7496]
[1747422969728,59.6,170.28,170.2,2.07274581]
[1747422969929,5.8713,170.26,170.22,5.8722]
[1747422970127,59.72,170.27,170.23,2.07274581]
[1747422970330,59.72,170.27,170.24,2.07274581]
[1747422970530,59.72,170.27,170.25,2.07386709]
[1747422970739,59.72,170.27,170.2,1.9192]
[1747422971044,65.5907,170.27,170.23,5.8718]
[1747422971445,65.5907,170.27,170.24,2.07381823]
[1747422971645,5.871,170.26,170.25,2.07381823]
[1747422973145,5.871,170.26,170.25,2.07428664]
[1747422973338,59.72,170.27,170.25,2.07428664]
[1747422973647,59.72,170.27,170.26,2.07428664]
[1747422974342,59.72,170.27,170.26,7.94528664]
[1747422974642,119.32,170.27,170.26,7.94572247]
[1747422974848,507.28,170.32,170.28,5.8702]
[1747422974849,119.34,170.3,170.28,5.8702]
[1747422975348,119.34,170.3,170.27,5.8705]
[1747422975644,119.34,170.3,170.28,2.07468764]
[1747422975841,119.34,170.3,170.29,2.07468764]
[1747422976247,125.2096,170.3,170.29,2.07468764]
[1747422976448,125.2096,170.3,170.21,59.72]
[1747422976650,119.34,170.3,170.22,2.07475297]
[1747422976836,5.8706,170.28,170.23,2.07475297]
[1747422977042,119.34,170.3,170.24,2.07475297]
[1747422977241,119.34,170.3,170.25,2.07475297]
[1747422977448,119.34,170.3,170.26,2.07475297]
[1747422977648,119.34,170.3,170.27,2.07475297]
[1747422977843,119.34,170.3,170.28,2.07475297]
[1747422978150,5.87,170.29,170.21,59.72]
[1747422978350,59.72,170.3,170.22,2.07490247]
[1747422978648,59.72,170.3,170.29,5.87]
[1747422978953,65.5888,170.33,170.29,7.94472476]
[1747422979149,65.5888,170.33,170.3,2.07472476]
[1747422979350,59.72,170.33,170.23,59.6]
[1747422979554,119.3,170.33,170.24,2.07451149]
[1747422979844,119.3,170.33,170.3,5.8694]
[1747422980049,119.3,170.33,170.31,2.07451149]
[1747422980242,119.3,170.33,170.32,2.07451149]
[1747422980838,125.1686,170.33,170.32,2.07451149]
[1747422981048,119.3,170.33,170.32,2.07451149]
[1747422981649,119.3,170.33,170.27,1.9562]
[1747422981852,119.3,170.33,170.28,2.07368589]
[1747422982048,119.3,170.33,170.29,2.07368589]
[1747422982346,119.3,170.33,170.3,7.94308589]
[1747422982647,119.3,170.33,170.31,2.07320573]
[1747422982851,125.1688,170.33,170.3,5.8694]
[1747422983047,125.1688,170.33,170.31,2.0732522]
[1747422983246,125.1688,170.33,170.3,5.8694]
[1747422983441,5.8689,170.32,170.31,2.07294035]
[1747422983648,119.3,170.33,170.27,1.9562]
[1747422983950,119.3,170.33,170.28,2.07298908]
[1747422984146,5.8691,170.32,170.29,7.94258908]
[1747422984342,5.8691,170.32,170.3,2.07298908]
[1747422984543,5.8691,170.32,170.31,6.9108019]
[1747422984740,5.8691,170.32,170.31,2.07298908]
[1747422985355,119.3,170.33,170.16,11.7489]
[1747422985553,12.78424504,170.32,170.19,61.4572]
[1747422985850,10.77984504,170.29,170.19,1.8972]
[1747422986052,5.871,170.26,170.19,1.8972]
[1747422986253,119.16,170.28,170.19,1.8972]
[1747422986441,119.16,170.28,170.26,5.8708]
[1747422987547,119.16,170.28,170.25,5.8712]
[1747422987749,119.16,170.28,170.19,1.8972]
[1747422989653,119.16,170.28,170.26,5.8708]
[1747422989953,119.16,170.28,170.2,59.58]
[1747422990253,59.56,170.28,170.2,59.58]
[1747422990441,59.56,170.28,170.21,3.8118]